[Event "NY Presidents Day Schiller-C 2024"]
[Site "New York"]
[Date "2024.02.16"]
[Round "1.1"]
[White "Czebe, Attila"]
[Black "Liu, Kelsey"]
[Result "1-0"]
[ECO "A18"]
[WhiteElo "2346"]
[BlackElo "2004"]
[Annotator "TA"]
[PlyCount "83"]
[EventDate "2024.02.14"]
[EventType "schev"]
[EventCountry "USA"]
[SourceTitle "playchess.com"]
[Source "ChessBase"]
[SourceQuality "1"]
[TimeControl "5400+30"]

{[%evp 9,83,0,8,0,-10,-34,-18,-30,0,5,5,-10,-24,-20,-15,-46,-8,-23,-7,-13,0,-20,0,-23,-14,-20,0,0,0,-17,-15,-20,-19,-12,0,0,0,0,25,6,113,112,134,19,146,153,154,131,100,144,147,14,8,1,7,0,0,0,0,0,0,0,0,0,0,0,0,0,146,19,1060,981,1008,1042,469,0]} 1. c4 {[%emt 0:09:44]} Nf6 {[%emt 0:00:12]} 2. Nc3 {[%emt 0:00:09]} e6 {[%emt 0:00:31]} 3. e4 {[%emt 0:00:59][%cal Be2e4,Be4e5][%mdl 32]} d5 {[%emt 0:01:22]} 4. e5 {[%emt 0:00:55]} Nfd7 {[%emt 0:01:21]} 5. d4 {[%emt 0:00:34]} dxc4 {[%emt 0:04:03]} 6. Nf3 {[%emt 0:00:50]} Nb6 {[%emt 0:02:00]} 7. Bxc4 {[%emt 0:08:04]} Nxc4 {[%emt 0:00:18]} 8. Qa4+ {[%emt 0:00:06] The position is equal.} Bd7 {[%emt 0:06:33]} 9. Qxc4 {[%emt 0:00:34]} Bc6 {[%emt 0:02:22]} 10. Bg5 {[%emt 0:00:10]} Be7 {[%emt 0:01:11]} 11. Bxe7 {[%emt 0:00:09]} Qxe7 {[%emt 0:00:05]} 12. Qe2 {[%emt 0:03:24]} O-O {[%emt 0:01:10]} 13. O-O {[%emt 0:00:08]} b6 {[%emt 0:04:44]} 14. Rad1 {[%emt 0:01:39]} Rd8 {[%emt 0:04:26]} 15. Rfe1 {[%emt 0:00:15]} Bb7 {[%emt 0:00:41]} 16. h3 {[%emt 0:02:07]} a5 {[%emt 0:09:02]} 17. Qe3 {[%emt 0:01:08]} Na6 {[%emt 0:01:57]} 18. a3 {[%emt 0:00:21]} Rd7 {[%emt 0:00:52]} 19. Ng5 {[%emt 0:03:18]} Rad8 {[%emt 0:02:20]} 20. Nge4 {[%emt 0:01:17]} Nb8 {[%emt 0:02:53] With the idea ...Nc6.} 21. Rd2 {[%emt 0:01:04]} Qh4 {[%emt 0:08:03]} 22. Red1 {[%emt 0:02:36]} h6 {[%emt 0:00:43]} 23. Ng3 {[%emt 0:01:56]} Na6 {[%emt 0:13:26]} 24. f4 {[%emt 0:12:05]} c5 {[%emt 0:11:49] [#]} (24... Nc5 $11 {keeps the balance.}) 25. d5 $1 $16 {[%emt 0:01:49][%mdl 512]} Bxd5 {[%emt 0:02:54]} (25... Nb8 26. d6) 26. Nxd5 {[%emt 0:00:18]} (26. Nf5 $1 $16 {[%cal Rf5h4]} Qh5 27. Nxd5 exd5 28. g4) 26... exd5 {[%emt 0:03:46]} (26... Rxd5 $11 27. Rxd5 Rxd5 28. Rxd5 exd5) 27. Nf5 {[%emt 0:00:21]} Qh5 {[%emt 0:00:37]} 28. g4 {[%emt 0:00:11]} Qg6 {[%emt 0:00:56] [#]} 29. Rxd5 {[%emt 0:01:08] White has more active pieces.} Qe6 {[%emt 0:01:27]} 30. Nd6 {[%emt 0:17:08]} (30. Rxd7 $16 Rxd7 31. Rd6 Rxd6 32. exd6) 30... Nc7 $11 {[%emt 0:02:23]} 31. R5d2 {[%emt 0:00:06] Strongly threatening f5.} f6 {[%emt 0:05:04]} 32. a4 {[%emt 0:07:05]} (32. Kf2 {keeps more tension.} fxe5 33. Qxe5 h5 34. Kf3) 32... Ne8 {[%emt 0:03:19]} 33. Nxe8 {[%emt 0:02:36]} Qxe8 {[%emt 0:00:29]} 34. Rxd7 {[%emt 0:03:33]} Rxd7 {[%emt 0:00:01]} 35. Rxd7 {[%emt 0:00:18]} Qxd7 {[%emt 0:00:02]} 36. exf6 {[%emt 0:00:11]} gxf6 {[%emt 0:00:16][%mdl 4096] Endgame. KQ-KQ} 37. b3 {[%emt 0:00:11]} Kf7 {[%emt 0:00:31]} 38. f5 {[%emt 0:00:50]} Qd1+ {[%emt 0:00:43] [#]} (38... Kg7 $11 {remains equal.}) 39. Kf2 {[%emt 0:00:11]} (39. Kg2 $1 $16 {Black must now prevent Qe6+.} Qd6 40. Qxh6) 39... Qc2+ $2 {[%emt 0:03:57][%mdl 8192]} (39... Qd6 $11) 40. Kg3 $18 {[%emt 0:00:21] White is clearly winning.} Qb2 {[%emt 0:00:26]} 41. Qe6+ {[%emt 0:00:29]} ({And not} 41. Qxh6 Qxb3+ 42. Kh4 Qc3 $11) 41... Kf8 {[%emt 0:00:14]} 42. Qxb6 $2 {[%emt 0:03:28][%mdl 32768] Weighted Error Value: White=0.23 (precise) /Black=0.26 (precise) .  Loses game:     	---       	Black=1      Mistake:       	White=3     	Black=3      Inaccurate:     	White=1     	Black=2      OK:         	White=6     	Black=14     Best:        	White=4     	Black=2      Brilliant:      	White=2     	---       . Loss on time!?} (42. Kh4 $18) 1-0

[Event "NY Presidents Day Schiller-C 2024"]
[Site "New York"]
[Date "2024.02.16"]
[Round "1.2"]
[White "Quesada Vera, Liordis"]
[Black "Gaw, Chloe"]
[Result "0-1"]
[ECO "B50"]
[WhiteElo "2337"]
[BlackElo "1928"]
[Annotator "TA"]
[PlyCount "96"]
[EventDate "2024.02.14"]
[EventType "schev"]
[EventCountry "USA"]
[SourceTitle "playchess.com"]
[Source "ChessBase"]
[SourceQuality "1"]
[TimeControl "5400+30"]

{[%evp 10,96,26,20,46,4,21,0,0,0,0,-8,-6,-21,-16,-33,-20,-22,0,-1,-25,-25,-40,-60,-67,-74,-70,-76,-86,-91,-76,-197,-143,-261,-252,-297,-99,-106,-105,-115,-105,-104,-113,-116,-116,-86,-91,-117,-132,-139,-127,-105,0,-10,0,12,0,0,14,0,-6,-40,0,0,0,-59,-8,-176,-66,-66,-66,-66,-21,-64,-39,-67,0,-315,-290,-403,-391,-1118,-1175,-1175,-1175,-1247,-1247,-942,-1002]} 1. e4 {[%emt 0:42:40]} c5 {[%emt 0:00:08]} 2. Nf3 {[%emt 0:00:17]} d6 {[%emt 0:00:05]} 3. c3 {[%emt 0:00:07]} Nf6 {[%emt 0:00:41]} 4. Be2 {[%emt 0:00:06]} Nbd7 {[%emt 0:03:24]} 5. Qc2 {[%emt 0:02:35]} Qc7 {[%emt 0:01:34]} 6. O-O {[%emt 0:01:10]} e6 {[%emt 0:00:48]} 7. Re1 {[%emt 0:03:08]} Be7 {[%emt 0:01:09]} 8. Bf1 {[%emt 0:01:29]} O-O {[%emt 0:06:22] The position is equal.} 9. a4 {[%emt 0:01:30]} b6 {[%emt 0:03:02]} 10. Na3 {[%emt 0:05:39]} a6 {[%emt 0:02:09]} 11. d4 {[%emt 0:03:52]} cxd4 {[%emt 0:03:47]} 12. Nxd4 {[%emt 0:00:10]} Bb7 {[%emt 0:04:41]} 13. Bf4 {[%emt 0:02:29]} Nc5 {[%emt 0:06:19]} 14. e5 {[%emt 0:01:05]} Ng4 {[%emt 0:04:09]} 15. exd6 {[%emt 0:19:13]} Bxd6 {[%emt 0:00:35]} 16. Nab5 {[%emt 0:00:44]} axb5 {[%emt 0:00:46]} 17. Nxb5 {[%emt 0:00:06] [#]} Bxf4 {[%emt 0:02:33]} 18. Nxc7 {[%emt 0:00:13]} Bxh2+ {[%emt 0:00:24] A strong pair of Bishops.} (18... Bxc7 19. h3 Nf6 20. g3 $15) 19. Kh1 {[%emt 0:00:13]} Bxc7 {[%emt 0:00:14] White is weak on the dark squares} 20. Bb5 {[%emt 0:04:03] [#]} (20. f3 $17 Nf6 21. b4) 20... Ne4 {[%emt 0:06:02]} 21. Re2 {[%emt 0:00:57]} (21. f3 $17 Ng3+ 22. Kg1) 21... Rfd8 $19 {[%emt 0:02:17]} 22. Kg1 {[%emt 0:00:53]} Ngf6 {[%emt 0:09:06]} (22... Bh2+ $19 {has better winning chances.} 23. Kh1 Bf4) 23. Rae1 $17 {[%emt 0:03:59]} Rd6 {[%emt 0:05:23] Black is much more active.} 24. Rxe4 {[%emt 0:03:00]} Nxe4 {[%emt 0:01:48]} 25. Rxe4 {[%emt 0:00:11]} Bxe4 {[%emt 0:01:39]} 26. Qxe4 {[%emt 0:00:04]} Rd1+ {[%emt 0:00:13]} 27. Bf1 {[%emt 0:00:07]} Rad8 {[%emt 0:01:20]} 28. Qc6 {[%emt 0:01:28]} R8d7 {[%emt 0:01:43]} 29. g3 {[%emt 0:00:25]} g6 {[%emt 0:01:04]} 30. Kg2 {[%emt 0:00:06]} R1d6 {[%emt 0:00:56]} (30... Bd8 $1 $17 {Threatening ...R1d2.} 31. Qf3 R1d2) 31. Qa8+ $1 $11 {[%emt 0:00:45]} Rd8 {[%emt 0:02:11]} 32. Qb7 {[%emt 0:00:12]} R6d7 {[%emt 0:06:02]} 33. Bb5 {[%emt 0:00:26]} Rb8 {[%emt 0:01:18]} 34. Qe4 {[%emt 0:02:37]} Rd2 {[%emt 0:01:49]} 35. b4 {[%emt 0:00:04]} Rbd8 {[%emt 0:01:13]} 36. Qc6 {[%emt 0:01:16]} Be5 {[%emt 0:00:51]} 37. Qxb6 {[%emt 0:00:48]} (37. a5 $11 bxa5 38. bxa5) 37... Bxc3 $15 {[%emt 0:00:13]} 38. Bc6 {[%emt 0:00:34] [#] Prevents R8d5.} (38. a5 $1 $11) 38... R8d3 {[%emt 0:04:18]} (38... Kg7 $1 $19 {Hoping for ...R8d3.} 39. Be4 R8d4) 39. Be4 {[%emt 0:00:38]} Rd4 {[%emt 0:00:59]} 40. Qb8+ {[%emt 0:00:01]} Rd8 {[%emt 0:00:40]} 41. Qb6 {[%emt 0:00:27]} Kg7 {[%emt 0:05:30] aiming for ...Bf6.} 42. a5 {[%emt 0:00:52] And now a6 would win.} Rc8 {[%emt 0:07:55]} ({Don't play} 42... R8d4 43. Qc7 Bxb4 44. Qe5+ f6 45. Qb8 $11) ({Black should play} 42... R8d6 $1 $15 43. Qb8 e5) 43. Qb7 $2 {[%emt 0:00:33][%mdl 8192]} (43. Qe3 $1 $11 {and White stays safe.}) 43... Rc4 $19 {[%emt 0:00:26]} 44. a6 {[%emt 0:00:35] Black must now prevent a7.} Rxb4 {[%emt 0:02:06]} 45. a7 $2 {[%emt 0:00:40]} (45. Qc7 Bd4 46. Kh3) 45... Rxb7 {[%emt 0:00:28] Black is clearly winning.} 46. Bxb7 {[%emt 0:00:02] [#]} Rxf2+ $3 {[%emt 0:00:18]} 47. Kxf2 {[%emt 0:00:13]} (47. Kh3 Ra2) 47... Bd4+ {[%emt 0:00:01]} 48. Kf3 {[%emt 0:00:02]} Bxa7 {[%emt 0:00:06] Weighted Error Value: White=0.42/Black=0.26 (precise) .  Loses game:     	White=2     	---        Missed win:     	---       	Black=1      Mistake:       	White=4     	Black=4      Inaccurate:     	White=2     	Black=1      OK:         	White=8     	Black=16     Best:        	White=6     	Black=7      Strong:       	White=1     	---} 0-1

[Event "NY Presidents Day Schiller-C 2024"]
[Site "New York"]
[Date "2024.02.16"]
[Round "1.3"]
[White "Perez Avendano, Paul Omar"]
[Black "Mou, Iris"]
[Result "1/2-1/2"]
[ECO "D11"]
[WhiteElo "2213"]
[BlackElo "2128"]
[Annotator "RC"]
[PlyCount "52"]
[EventDate "2024.02.14"]
[EventType "schev"]
[EventCountry "USA"]
[SourceTitle "playchess.com"]
[Source "ChessBase"]
[SourceQuality "1"]
[TimeControl "5400+30"]

1. Nf3 {[%emt 0:01:50]} d5 {[%emt 0:00:13]} 2. g3 {[%emt 0:00:29]} Bg4 {[%emt 0:00:27]} 3. Bg2 {[%emt 0:00:36]} e6 {[%emt 0:00:30]} 4. c4 {[%emt 0:01:47]} c6 {[%emt 0:02:53]} 5. O-O {[%emt 0:04:04]} Nf6 {[%emt 0:00:30]} 6. d4 {[%emt 0:03:46]} Bd6 {[%emt 0:03:01]} 7. b3 {[%emt 0:01:56]} O-O {[%emt 0:02:31]} 8. Bb2 {[%emt 0:00:35]} Nbd7 {[%emt 0:04:22]} 9. Nbd2 {[%emt 0:04:19]} Qc7 {[%emt 0:07:08]} 10. Rc1 {[%emt 0:01:39]} Rfe8 {[%emt 0:02:51]} 11. a3 {[%emt 0:09:41]} a5 {[%emt 0:10:05]} 12. Re1 {[%emt 0:05:24]} Ne4 {[%emt 0:15:18]} 13. Nxe4 {[%emt 0:06:06]} dxe4 {[%emt 0:00:18]} 14. Ng5 {[%emt 0:01:34]} f5 {[%emt 0:05:12]} 15. d5 {[%emt 0:05:41]} e5 {[%emt 0:05:41]} 16. Ne6 {[%emt 0:15:30]} Qb6 {[%emt 0:03:38]} 17. h3 {[%emt 0:10:28]} Bh5 {[%emt 0:02:22]} 18. g4 {[%emt 0:02:48]} e3 {[%emt 0:06:39]} 19. f4 {[%emt 0:02:51]} fxg4 {[%emt 0:02:38]} 20. fxe5 {[%emt 0:00:57]} Bxe5 {[%emt 0:07:34]} 21. Bxe5 {[%emt 0:00:54]} Nxe5 {[%emt 0:00:16]} 22. c5 {[%emt 0:00:11]} Qa7 {[%emt 0:00:51]} 23. Nc7 {[%emt 0:03:46]} gxh3 {[%emt 0:03:20]} 24. Bxh3 {[%emt 0:00:24]} Qb8 {[%emt 0:01:23]} 25. Nxe8 {[%emt 0:04:42]} Nf3+ {[%emt 0:03:12]} 26. exf3 {[%emt 0:00:19]} Qg3+ {[%emt 0:00:07]} 1/2-1/2

[Event "NY Presidents Day Schiller-C 2024"]
[Site "New York"]
[Date "2024.02.16"]
[Round "1.4"]
[White "Andrianov, Nikolai"]
[Black "Shangin, Lev"]
[Result "1-0"]
[ECO "A06"]
[WhiteElo "2266"]
[BlackElo "1866"]
[Annotator "TA"]
[PlyCount "67"]
[EventDate "2024.02.14"]
[EventType "schev"]
[EventCountry "USA"]
[SourceTitle "playchess.com"]
[Source "ChessBase"]
[SourceQuality "1"]
[TimeControl "5400+30"]

{[%evp 9,67,0,7,0,1,0,5,0,0,-3,-3,-8,6,10,7,-3,27,12,22,-17,-39,-22,0,-2,0,0,0,0,0,8,7,-7,0,0,0,-10,114,121,110,108,191,184,200,199,199,176,177,180,217,209,212,209,215,200,307,298,274,305,593,595]} 1. Nf3 {[%emt 1:31:00]} Nf6 {[%emt 1:31:00]} 2. b3 {[%emt 0:00:30]} d5 {[%emt 0:00:30]} 3. Bb2 {[%emt 0:00:30]} Bf5 {[%emt 0:00:30]} 4. c4 {[%emt 0:00:30]} e6 {[%emt 0:00:30]} 5. Nh4 {[%emt 0:00:30]} Bg4 {[%emt 0:00:30]} 6. h3 {[%emt 0:00:30]} Bh5 {[%emt 0:00:30]} 7. g3 {[%emt 0:00:30]} Be7 {[%emt 0:00:30]} 8. Bg2 {[%emt 0:00:30] Die Stellung ist ausgeglichen.} O-O {[%emt 0:00:30]} 9. O-O {[%emt 0:00:30]} c6 {[%emt 0:00:30]} 10. d3 {[%emt 0:00:30]} Nbd7 {[%emt 0:00:30]} 11. Nd2 {[%emt 0:00:30]} a5 {[%emt 0:00:30]} 12. a3 {[%emt 0:00:30]} Qc7 {[%emt 0:00:30]} 13. g4 {[%emt 0:00:30]} Ne8 {[%emt 0:00:30]} 14. Nf5 exf5 15. gxh5 {[%emt 0:01:00]} dxc4 {[%emt 0:01:00]} 16. bxc4 {[%emt 0:00:30]} h6 {[%emt 0:00:30]} 17. e3 {[%emt 0:00:30]} Bf6 {[%emt 0:00:30]} 18. d4 {[%emt 0:00:30]} c5 $1 {[%emt 0:00:30]} 19. Qf3 {[%emt 0:00:30]} Nd6 {[%emt 0:00:30]} 20. Rab1 {[%emt 0:00:30]} Rab8 {[%emt 0:00:30]} 21. Qg3 {[%emt 0:00:30] Droht dxc5 und aus.} b6 {[%emt 0:00:30]} 22. Rfd1 {[%emt 0:00:30]} Ne8 {[%emt 0:00:30]} (22... Rfc8 $11 {hält das Gleichgewicht.}) 23. Qxc7 $16 {[%emt 0:00:30]} Nxc7 {[%emt 0:00:30]} 24. Bc6 {[%emt 0:00:30]} Rbd8 {[%emt 0:00:30]} (24... Rfd8 $16 {war nötig.}) 25. d5 $18 {[%emt 0:00:30]} Bxb2 {[%emt 0:00:30]} 26. Rxb2 {[%emt 0:00:30]} Na8 {[%emt 0:00:30]} 27. Nf3 {[%emt 0:00:30][%cal Bd2f3,Bf3h4,Bh4g2][%mdl 32] Schwarz ist schwach auf den weissen Feldern} Rfe8 {[%emt 0:00:30]} 28. Nh4 {[%emt 0:00:30]} Re5 {[%emt 0:00:30]} 29. Rb3 {[%emt 0:00:30]} f4 {[%emt 0:00:30]} 30. exf4 {[%emt 0:00:30]} Rxh5 {[%emt 0:00:30]} 31. Ng2 {[%emt 0:00:30]} Rf5 {[%emt 0:00:30]} (31... Nf6 $142 32. d6 Kf8) 32. Re1 {[%emt 0:00:30]} Kf8 {[%emt 0:00:30] [#]} 33. Rbe3 $1 {[%emt 0:00:30] Bxd7 wäre nun fies.} Rf6 $2 {[%emt 0:00:30]} (33... Nf6 {war einen Versuch wert.} 34. Re7 b5 35. Bxb5 g5) 34. Bxd7 {[%emt 0:00:30] Gewichteter Fehlerwert: Weiß=0.05 (makellos) /Schwarz=0.28 (präzise) .  Fehler:       	---       	Schwarz=4     Ungenau:       	Weiß=1     	Schwarz=1     OK:         	Weiß=13    	Schwarz=12    Bester:       	Weiß=3     	---        Stark:        	Weiß=1     	Schwarz=1} 1-0

[Event "NY Presidents Day Schiller-C 2024"]
[Site "New York"]
[Date "2024.02.16"]
[Round "1.5"]
[White "Plat, Vojtech"]
[Black "Pagan, Jonathan"]
[Result "1-0"]
[ECO "C45"]
[WhiteElo "2516"]
[BlackElo "2018"]
[Annotator "TA"]
[PlyCount "41"]
[EventDate "2024.02.14"]
[EventType "schev"]
[EventCountry "USA"]
[SourceTitle "playchess.com"]
[Source "ChessBase"]
[SourceQuality "1"]
[TimeControl "5400+30"]

{[%evp 17,41,-2,0,-58,-56,-50,-27,-41,-13,-8,-9,-7,0,0,0,0,193,200,383,375,372,373,375,333,393,364]} 1. e4 {[%emt 0:00:03]} e5 {[%emt 0:05:24]} 2. Nf3 {[%emt 0:00:06]} Nc6 {[%emt 0:00:05]} 3. d4 {[%emt 0:00:15]} exd4 {[%emt 0:00:11]} 4. Nxd4 {[%emt 0:00:05]} Nf6 {[%emt 0:00:06]} 5. Nxc6 {[%emt 0:00:36]} bxc6 {[%emt 0:00:05]} 6. e5 {[%emt 0:00:05]} Qe7 {[%emt 0:00:04]} 7. Qe2 {[%emt 0:00:04]} Nd5 {[%emt 0:00:05]} 8. c4 {[%emt 0:00:06]} Nb6 {[%emt 0:00:05]} 9. b3 {[%emt 0:01:33]} a5 {[%emt 0:00:08]} 10. Nc3 {[%emt 0:00:59]} (10. Ba3 $11 Qe6 11. Bxf8 Rxf8 12. Nc3) 10... a4 $15 {[%emt 0:01:10] ...axb3 would now be deadly.} 11. Rb1 {[%emt 0:00:06]} axb3 {[%emt 0:00:15]} 12. axb3 {[%emt 0:00:07] Black has an edge.} Qe6 {[%emt 0:01:42]} 13. Bd2 {[%emt 0:03:26]} Bb4 {[%emt 0:11:14]} 14. Qe4 {[%emt 0:05:13]} d5 {[%emt 0:08:49]} 15. exd6 {[%emt 0:00:50]} cxd6 {[%emt 0:02:02]} 16. Be2 {[%emt 0:05:56]} d5 $2 {[%emt 0:14:34] [#]} (16... O-O $11 {and Black has nothing to worry.} 17. O-O (17. Qxc6 Re8 $14) 17... Qxe4 18. Nxe4 Bxd2 19. Nxd2 Bf5) 17. Qd4 $1 $18 {[%emt 0:03:03][%csl LRb6,LRg7]} Qf6 {[%emt 0:07:02]} (17... O-O {is a better defense.}) 18. Qxb6 {[%emt 0:00:44]} Bxc3 {[%emt 0:00:44]} 19. Qe3+ {[%emt 0:00:05]} Be5 {[%emt 0:00:05]} 20. f4 {[%emt 0:01:53]} Bf5 {[%emt 0:00:29]} 21. Rc1 {[%emt 0:01:00] Weighted Error Value: White=0.14 (very precise) /Black=0.64.  Loses game:     	---       	Black=1      Mistake:       	---       	Black=1      Inaccurate:     	---       	Black=1      OK:         	White=4     	Black=5      Best:        	White=3     	Black=1} (21. Qxe5+ $2 {loses.} Qxe5 22. fxe5 Bxb1 $19) 1-0

[Event "NY Presidents Day Schiller-C 2024"]
[Site "New York"]
[Date "2024.02.16"]
[Round "1.6"]
[White "Ho, Carter"]
[Black "Martin Del Campo Cardenas, Roberto Abel"]
[Result "1-0"]
[ECO "B56"]
[WhiteElo "2180"]
[BlackElo "2205"]
[Annotator "RC"]
[PlyCount "61"]
[EventDate "2024.02.14"]
[EventType "schev"]
[EventCountry "USA"]
[SourceTitle "playchess.com"]
[Source "ChessBase"]
[SourceQuality "1"]
[TimeControl "5400+30"]

1. e4 {[%emt 0:02:24]} c5 {[%emt 0:00:06]} 2. Nf3 {[%emt 0:00:11]} d6 {[%emt 0:00:07]} 3. d4 {[%emt 0:00:04]} cxd4 {[%emt 0:00:05]} 4. Nxd4 {[%emt 0:00:05]} Nf6 {[%emt 0:00:04]} 5. Nc3 {[%emt 0:00:06]} e5 {[%emt 0:02:04]} 6. Nb3 {[%emt 0:04:50]} Be7 {[%emt 0:01:25]} 7. f3 {[%emt 0:00:57]} O-O {[%emt 0:00:30]} 8. Be3 {[%emt 0:00:31]} a5 {[%emt 0:01:38]} 9. Bb5 {[%emt 0:02:07]} Be6 {[%emt 0:17:04]} 10. g4 {[%emt 0:06:22]} d5 {[%emt 0:02:42]} 11. g5 {[%emt 0:04:40]} d4 {[%emt 0:03:59]} 12. gxf6 {[%emt 0:04:04]} Bxf6 {[%emt 0:00:04]} 13. Bf2 {[%emt 0:00:30]} dxc3 {[%emt 0:01:03]} 14. Qxd8 {[%emt 0:01:12]} Rxd8 {[%emt 0:10:31]} 15. bxc3 {[%emt 0:02:01]} Rc8 {[%emt 0:32:59]} 16. Nc5 {[%emt 0:02:00]} Bh3 {[%emt 0:12:01]} 17. Rg1 {[%emt 0:04:43]} Rc7 {[%emt 0:03:52]} 18. Rd1 {[%emt 0:04:09]} g6 {[%emt 0:01:26]} 19. Na4 {[%emt 0:01:57]} Bd7 {[%emt 0:01:54]} 20. c4 {[%emt 0:01:39]} Ra6 {[%emt 0:04:50]} 21. Nb6 {[%emt 0:02:54]} Rxb6 {[%emt 0:01:18]} 22. Bxb6 {[%emt 0:00:10]} Bh4+ {[%emt 0:00:30]} 23. Rg3 {[%emt 0:01:45]} Bxb5 {[%emt 0:01:48]} 24. Bxc7 {[%emt 0:00:20]} Na6 {[%emt 0:00:00]} 25. cxb5 {[%emt 0:00:23]} Nxc7 {[%emt 0:00:00]} 26. b6 {[%emt 0:02:49]} Ne6 {[%emt 0:00:27]} 27. Rd7 {[%emt 0:01:21]} Nd8 {[%emt 0:00:50]} 28. Kd1 {[%emt 0:00:39]} Kf8 {[%emt 0:00:04]} 29. Rh3 {[%emt 0:00:33]} Ke8 {[%emt 0:00:19]} 30. Rc7 {[%emt 0:00:36]} Bf6 {[%emt 0:01:16]} 31. Rxh7 {[%emt 0:00:20]} 1-0

[Event "NY Presidents Day Schiller-C 2024"]
[Site "New York"]
[Date "2024.02.16"]
[Round "1.7"]
[White "Tang, Benjamin"]
[Black "Podavonov, Alisher"]
[Result "1-0"]
[ECO "B12"]
[WhiteElo "2167"]
[BlackElo "2175"]
[Annotator "RC"]
[PlyCount "119"]
[EventDate "2024.02.14"]
[EventType "schev"]
[EventCountry "USA"]
[SourceTitle "playchess.com"]
[Source "ChessBase"]
[SourceQuality "1"]
[TimeControl "5400+30"]

1. e4 {[%emt 0:00:01]} c6 {[%emt 0:00:06]} 2. d4 {[%emt 0:00:04]} d5 {[%emt 0:00:03]} 3. e5 {[%emt 0:00:07]} Bf5 {[%emt 0:00:06]} 4. h4 {[%emt 0:00:04]} h5 {[%emt 0:00:32]} 5. Bd3 {[%emt 0:00:08]} Bxd3 {[%emt 0:00:12]} 6. Qxd3 {[%emt 0:00:10]} e6 {[%emt 0:00:21]} 7. Nf3 {[%emt 0:00:10]} Qa5+ {[%emt 0:01:00]} 8. Nbd2 {[%emt 0:00:16]} Qa6 {[%emt 0:01:13]} 9. c4 {[%emt 0:00:09]} Bb4 {[%emt 0:04:11]} 10. O-O {[%emt 0:03:29]} Nd7 {[%emt 0:01:14]} 11. b3 {[%emt 0:09:44]} Ne7 {[%emt 0:02:11]} 12. Rd1 {[%emt 0:04:14]} Nb6 {[%emt 0:08:28]} 13. Qc2 {[%emt 0:05:14]} Bxd2 {[%emt 0:06:59]} 14. Nxd2 {[%emt 0:04:14]} Nf5 {[%emt 0:00:54]} 15. Bb2 {[%emt 0:04:35]} Nxh4 {[%emt 0:01:33]} 16. a4 {[%emt 0:05:47]} Rd8 {[%emt 0:17:04]} 17. a5 {[%emt 0:05:41]} Nc8 {[%emt 0:01:18]} 18. Ba3 {[%emt 0:05:28]} Rh6 {[%emt 0:15:41]} 19. Nf1 {[%emt 0:05:25]} Nf5 {[%emt 0:13:49]} 20. Ne3 {[%emt 0:05:35]} Nxe3 {[%emt 0:04:56]} 21. fxe3 {[%emt 0:00:03]} Qxa5 {[%emt 0:01:07]} 22. Bf8 {[%emt 0:05:03]} Qxa1 {[%emt 0:06:39]} 23. Rxa1 {[%emt 0:04:57]} Kxf8 {[%emt 0:00:03]} 24. Qc3 {[%emt 0:01:36]} Rd7 {[%emt 0:01:01]} 25. b4 {[%emt 0:04:34]} dxc4 {[%emt 0:02:02]} 26. Qxc4 {[%emt 0:00:05]} a6 {[%emt 0:01:01]} 27. b5 {[%emt 0:00:54]} axb5 {[%emt 0:00:47]} 28. Qc5+ {[%emt 0:00:08]} Ke8 {[%emt 0:00:59]} 29. Ra8 {[%emt 0:00:07]} Rd8 {[%emt 0:01:21]} 30. Rb8 {[%emt 0:00:56]} Ne7 {[%emt 0:01:33]} 31. Rxb7 {[%emt 0:00:17]} Rd7 {[%emt 0:00:09]} 32. Rb8+ {[%emt 0:03:06]} Rd8 {[%emt 0:00:01]} 33. Rb6 {[%emt 0:00:40]} f5 {[%emt 0:02:03]} 34. Qa3 {[%emt 0:02:17]} Rh7 {[%emt 0:04:32]} 35. Rb7 {[%emt 0:04:43]} g5 {[%emt 0:00:25]} 36. Qa2 {[%emt 0:01:12]} Kf7 {[%emt 0:00:38]} 37. Qa7 {[%emt 0:00:04]} Ke8 {[%emt 0:01:03]} 38. Rb6 {[%emt 0:02:07]} Rf7 {[%emt 0:00:19]} 39. Qa2 {[%emt 0:00:07]} Nd5 {[%emt 0:00:39]} 40. Rxc6 {[%emt 0:00:39]} Re7 {[%emt 0:00:23]} 41. Qe2 {[%emt 0:03:21]} b4 {[%emt 0:01:29]} 42. Qxh5+ {[%emt 0:01:59]} Kd7 {[%emt 0:00:01]} 43. Ra6 {[%emt 0:00:13]} Rc8 {[%emt 0:01:00]} 44. Rd6+ {[%emt 0:01:01]} Kc7 {[%emt 0:00:07]} 45. Qe2 {[%emt 0:00:47]} Kb8 {[%emt 0:00:51]} 46. Qa2 {[%emt 0:03:05]} Ra7 {[%emt 0:00:49]} 47. Qb3 {[%emt 0:01:18]} Re7 {[%emt 0:00:32]} 48. Rxd5 {[%emt 0:01:10]} exd5 {[%emt 0:00:02]} 49. Qxb4+ {[%emt 0:00:08]} Rb7 {[%emt 0:00:01]} 50. Qd6+ {[%emt 0:00:07]} Ka7 {[%emt 0:00:39]} 51. Qxd5 {[%emt 0:00:12]} g4 {[%emt 0:00:32]} 52. Kf2 {[%emt 0:01:21]} f4 {[%emt 0:00:25]} 53. exf4 {[%emt 0:00:36]} Kb8 {[%emt 0:01:04]} 54. Kg3 {[%emt 0:08:02]} Rc3+ {[%emt 0:00:49]} 55. Kxg4 {[%emt 0:00:00]} Rg7+ {[%emt 0:00:15]} 56. Kf5 {[%emt 0:00:00]} Rcg3 {[%emt 0:00:27]} 57. e6 {[%emt 0:00:00]} Kc7 {[%emt 0:00:28]} 58. Qc5+ {[%emt 0:00:00]} Kd8 {[%emt 0:00:01]} 59. Qf8+ {[%emt 0:00:00]} Kc7 {[%emt 0:00:01]} 60. e7 {[%emt 0:00:00]} 1-0